fUSD/lending_fUSD_20250724
["ID","MTS","AMOUNT","RATE_DAILY","PERIOD"]
[374611387,1753375844000,-182.73017919,0.00035788,2]
[374611388,1753375844012,-500.0,0.00035789,120]
[374611391,1753375844021,-150.0,0.0003579,2]
[374611392,1753375844030,-163.0,0.0003579,120]
[374611394,1753375844040,-1715.43631094,0.00035791,7]
[374611396,1753375844052,-1083.0,0.00035791,5]
[374611398,1753375844061,-151.0,0.00035791,7]
[374611400,1753375844071,-151.0,0.00035791,7]
[374611403,1753375844082,-959.54986701,0.00035792,2]
[374611404,1753375844094,-959.54986701,0.00035792,2]
[374611407,1753375844105,-959.54986701,0.00035792,2]
[374611409,1753375844114,-959.54986701,0.00035792,2]
[374611411,1753375844124,-261.53924312,0.00035792,2]
[374611413,1753375844134,-261.53924312,0.00035792,2]
[374611415,1753375844144,-500.0,0.00035793,30]
[374611417,1753375844153,-480.0,0.00035794,120]
[374611419,1753375844163,-480.0,0.00035794,120]
[374611421,1753375844172,-278.610991,0.00035795,7]
[374611423,1753375844183,-278.610991,0.00035795,7]
[374611425,1753375844193,-345.434742,0.00035795,7]
[374611427,1753375844203,-345.434742,0.00035795,7]
[374611429,1753375844212,-151.0,0.00035796,7]
[374611431,1753375844223,-278.610991,0.00035796,7]
[374611433,1753375844232,-278.610991,0.00035796,7]
[374611435,1753375844242,-278.610991,0.00035796,7]
[374611437,1753375844253,-278.610991,0.00035796,7]
[374611439,1753375844263,-278.610991,0.00035796,7]
[374611441,1753375844272,-278.610991,0.00035796,7]
[374611443,1753375844282,-278.610991,0.00035796,7]
[374611445,1753375844291,-278.610991,0.00035796,7]
[374611447,1753375844301,-278.610991,0.00035796,7]
[374611449,1753375844311,-278.610991,0.00035796,7]
[374611451,1753375844321,-278.610991,0.00035796,7]
[374611453,1753375844331,-278.610991,0.00035796,7]
[374611454,1753375844345,-278.610991,0.00035796,7]
[374611456,1753375844355,-278.610993,0.00035796,7]
[374611458,1753375844366,-345.434742,0.00035796,7]
[374611461,1753375844376,-345.434742,0.00035796,7]
[374611463,1753375844389,-345.434742,0.00035796,7]
[374611464,1753375844400,-345.434742,0.00035796,7]
[374611466,1753375844412,-345.434742,0.00035796,7]
[374611469,1753375844423,-345.434742,0.00035796,7]
[374611471,1753375844434,-345.434742,0.00035796,7]
[374611506,1753375844781,-345.434742,0.00035796,7]
[374611508,1753375844792,-345.434742,0.00035796,7]
[374611510,1753375844803,-345.434742,0.00035796,7]
[374611512,1753375844813,-345.434742,0.00035796,7]
[374611514,1753375844823,-345.434742,0.00035796,7]
[374611516,1753375844833,-345.434742,0.00035796,7]
[374611518,1753375844845,-345.434748,0.00035796,7]
[374611520,1753375844855,-172.973458,0.00035797,7]
[374611522,1753375844865,-300.0,0.00035797,10]
[374611524,1753375844875,-300.0,0.00035797,10]
[374611526,1753375844886,-300.0,0.00035797,10]
[374611529,1753375844895,-300.0,0.00035797,10]
[374611531,1753375844906,-50000.0,0.00035797,30]
[374611533,1753375844916,-50000.0,0.00035797,31]
[374611535,1753375844926,-50000.0,0.00035797,32]
[374611537,1753375844935,-50000.0,0.00035797,33]
[374611539,1753375844945,-50000.0,0.00035797,34]
[374611541,1753375844956,-736.13842902,0.00035798,2]
[374611543,1753375844966,-189952.87574015,0.00035798,17]
[374611545,1753375844980,-13602.04650937,0.00035798,17]
[374611548,1753375844992,-11079.69999998,0.00035798,17]
[374611550,1753375845004,-500.0,0.00035798,17]
[374611553,1753375845023,-527.321257,0.00035598,7]
[374611555,1753375845033,-85420.50702007,0.00035798,17]
[374611557,1753375845047,-183983.16257332,0.00035798,17]
[374611559,1753375845060,-253.18864894,0.00035798,17]
[374611561,1753375845072,-15335.7790196,0.00035798,17]
[374611568,1753375845125,-527.321257,0.000357,7]
[374611569,1753375845135,-527.321257,0.00035797,7]
[374611572,1753375845145,-527.321257,0.00035798,7]
[374611574,1753375845154,-527.321257,0.00035798,7]
[374611576,1753375845164,-527.321257,0.00035798,7]
[374611578,1753375845174,-66390.66411178,0.00035798,17]
[374611581,1753375845195,-527.321257,0.00035798,7]
[374611583,1753375845204,-5466.78285844,0.00035798,17]
[374611585,1753375845216,-6428.880015,0.00035798,17]
[374611587,1753375845228,-3953.799992,0.00035798,17]
[374611589,1753375845240,-11156.0,0.00035798,17]
[374611592,1753375845251,-2409.46216671,0.00035798,17]
[374611594,1753375845263,-1169.53110446,0.00035798,17]
[374611596,1753375845274,-610.20185448,0.00035798,17]
[374611601,1753375845306,-5943.97641201,0.00035798,17]
[374611638,1753375845666,-415.25,0.00030327,2]
[374611640,1753375845678,-500.0,0.00030327,2]
[374611642,1753375845689,-443.5,0.00030327,2]
[374611644,1753375845699,-259.02929957,0.00034916,2]
[374611646,1753375845710,-527.321257,0.00035598,7]
[374611648,1753375845720,-2314.29944343,0.00035698,2]
[374611654,1753375845769,-1000.0,0.0003563,7]
[374611656,1753375845780,-915.70905333,0.00035698,2]
[374611658,1753375845791,-527.321257,0.000357,7]
[374611660,1753375845802,-1000.0,0.00035743,7]
[374611663,1753375845813,-527.321257,0.00035798,7]
[374611665,1753375845823,-527.321257,0.00035798,7]
[374611667,1753375845833,-527.321257,0.00035798,7]
[374611669,1753375845848,-3787.07341926,0.00035798,17]
[374611671,1753375845862,-13032.73755812,0.00035798,17]
[374611673,1753375845873,-1184.183,0.00035798,17]
[374611700,1753375846252,-603.80100003,0.00035798,17]
[374611703,1753375846264,-1187.0,0.00035798,17]
[374611705,1753375846276,-3025.16362938,0.00035798,17]
[374611707,1753375846288,-4117.18682384,0.00035798,17]
[374611709,1753375846301,-921.92423999,0.00035798,17]
[374611711,1753375846312,-797.24999776,0.00035798,17]
[374611714,1753375846328,-251.42240275,0.00035797,7]
[374611944,1753376424314,153.98,0.00013699,2]
[374611946,1753376495549,500.0,0.0001,3]
[374611948,1753376513412,500.0,0.0001,4]
[374611949,1753376522362,500.0,0.0001,5]
[374611950,1753376532187,500.0,0.0001,6]
[374611951,1753376543340,500.0,0.0001,7]
[374611955,1753376640738,300.0,0.0001,2]
[374611958,1753376806839,1000.0,0.00027397,120]
[374611959,1753376825790,1000.0,0.00027397,120]
[374611968,1753376898482,1000.0,0.00027397,120]
[374611969,1753377013011,654.50144676,0.00027397,120]
[374611990,1753377032983,-247.7934502,0.00027297,2]
[374611991,1753377032993,-1000.0,0.00027397,2]
[374611992,1753377033003,-1000.0,0.00027397,2]
[374611993,1753377033013,-1000.0,0.00027397,2]
[374611994,1753377033022,-1000.0,0.00027397,2]
[374611995,1753377033032,-1000.0,0.00027397,2]
[374611996,1753377033042,-1000.0,0.00027397,2]
[374611997,1753377033051,-1000.0,0.00027397,2]
[374611998,1753377033061,-1000.0,0.00027397,2]
[374611999,1753377033072,-636.00770188,0.00027397,2]
[374612000,1753377033084,-363.99229812,0.00027397,2]
[374612001,1753377033094,-1000.0,0.00027397,2]
[374612002,1753377033103,-1000.0,0.00027397,2]
[374612003,1753377033113,-1000.0,0.00027397,2]
[374612004,1753377033123,-1000.0,0.00027397,2]
[374612005,1753377033133,-1000.0,0.00027397,2]
[374612006,1753377033143,-1000.0,0.00027397,2]
[374612007,1753377033153,-150.0,0.000274,2]
[374612008,1753377033163,-150.0,0.00028299,5]
[374612009,1753377033173,-1000.0,0.000289,20]
[374612010,1753377033183,-214.73569666,0.000289,20]
[374612011,1753377033193,-151.11880522,0.00028982,2]
[374612012,1753377033228,-68.29119478,0.00028982,2]
[374612013,1753377033238,-152.71,0.00029829,2]
[374612014,1753377033248,-160.0,0.00030536,2]
[374612015,1753377033258,-802.78385235,0.00030536,2]
[374612016,1753377033270,-37.12884366,0.00030536,2]
[374612017,1753377033280,-219.41,0.00030712,2]
[374612018,1753377033290,-12.08315859,0.000324,26]
[374612019,1753377033302,-279.91684141,0.000324,26]
[374612020,1753377033312,-214.73569665,0.000324,26]
[374612021,1753377033322,-1000.0,0.00032442,26]
[374612022,1753377033333,-1000.0,0.00032442,26]
[374612023,1753377033347,-219.41,0.00032443,2]
[374612024,1753377033356,-509.0,0.00032641,2]
[374612025,1753377033366,-59.19525004,0.00032741,2]
[374612026,1753377033403,-151.81627792,0.00032741,2]
[374612027,1753377033415,-200.0,0.00032765,2]
[374612028,1753377033426,-151.7111916,0.00032812,2]
[374612029,1753377033438,-0.9988084,0.00032812,2]
[374612030,1753377033448,-200.0,0.00032822,7]
[374612031,1753377033458,-200.0,0.00033043,2]
[374612032,1753377033468,-200.0,0.00033043,2]
[374612033,1753377033478,-200.0,0.00033043,2]
[374612034,1753377033488,-200.0,0.00033043,2]
[374612035,1753377033498,-168.0,0.00033075,120]
[374612036,1753377033508,-168.0,0.00033408,2]
[374612037,1753377033518,-168.0,0.00033483,2]
[374612038,1753377033528,-168.0,0.00033714,7]
[374612039,1753377033539,-184.42,0.00033821,120]
[374612040,1753377033548,-1404.0,0.00034005,2]
[374612041,1753377033558,-339.13,0.00034031,2]
[374612042,1753377033570,-219.41,0.00034173,2]
[374612043,1753377033580,-500.0,0.00034209,30]
[374612044,1753377033590,-153.98,0.00034247,2]
[374612045,1753377033600,-168.0,0.00034255,2]
[374612046,1753377033610,-150.93,0.00034331,2]
[374612047,1753377033619,-218.59541418,0.00034355,2]
[374612048,1753377033632,-2090.76724442,0.00034355,2]
[374612051,1753377037761,-489.599991,0.00034355,2]
[374612052,1753377037871,-427.56097762,0.00034355,2]
[374612053,1753377037881,-795.96409565,0.00034356,2]
[374612054,1753377037894,-608.03590435,0.00034356,2]
[374612055,1753377037904,-922.793,0.00034356,38]
[374612056,1753377037915,-814.15956158,0.000344,2]
[374612057,1753377037927,-282.37,0.000344,2]
[374612058,1753377037940,-4188.74551588,0.000344,2]
[374612059,1753377037953,-295.03609571,0.000344,2]
[374612231,1753377039780,-44802.4455221,0.000344,2]
[374612233,1753377039790,-509.0,0.00034465,5]
[374612235,1753377039801,-500.0,0.00034483,30]
[374612238,1753377039811,-480.0,0.00034489,120]
[374612241,1753377039821,-10000.0,0.00034489,2]
[374612243,1753377039830,-10000.0,0.00034489,2]
[374612245,1753377039841,-10000.0,0.00034489,2]
[374612247,1753377039850,-1009.01536412,0.00034489,2]
[374612249,1753377039861,-1081.86541949,0.00034498,30]
[374612251,1753377039870,-2000.0,0.000345,2]
[374612253,1753377039879,-168.0,0.00034511,2]
[374612254,1753377039889,-330.0,0.00034613,2]
[374612255,1753377039899,-244.72,0.0003464,2]
[374612256,1753377039909,-1000.0,0.00034645,2]
[374612257,1753377039918,-4928.18,0.00034649,2]
[374612258,1753377039928,-8318.04,0.00034649,30]
[374612259,1753377039937,-332.63,0.0003466,2]
[374612260,1753377039947,-763.52,0.00034667,30]
[374612261,1753377039957,-1404.0,0.00034706,2]
[374612262,1753377039967,-1081.86541949,0.00034723,30]
[374612263,1753377039977,-253.118446,0.00034724,30]
[374612264,1753377039987,-500.0,0.00034757,30]
[374612265,1753377039996,-928.68,0.00034849,2]
[374612266,1753377040006,-409.08,0.00034849,2]
[374612267,1753377040015,-465.69,0.00034849,2]
[374612269,1753377040025,-465.69,0.00034849,2]
[374612271,1753377040035,-465.69,0.00034849,2]
[374612273,1753377040045,-200.0,0.00034865,2]
[374612275,1753377040056,-200.0,0.00034865,2]
[374612277,1753377040065,-480.0,0.00034986,120]
[374612279,1753377040076,-172.11,0.00034986,2]
[374612281,1753377040086,-459.05,0.00034986,2]
[374612283,1753377040096,-459.05,0.00034986,2]
[374612285,1753377040106,-357.98,0.00034986,2]
[374612287,1753377040115,-172.26,0.00034986,2]
[374612289,1753377040125,-1176.21,0.00034986,2]
[374612291,1753377040134,-327.69,0.00034986,2]
[374612292,1753377040144,-1176.21,0.00034986,2]
[374612294,1753377040154,-346.35,0.00034986,2]
[374612297,1753377040163,-886.61,0.00034986,2]
[374612299,1753377040173,-150.0,0.00034986,2]
[374612300,1753377040182,-459.31,0.00034986,2]
[374612303,1753377040192,-715.21,0.00034986,2]
[374612305,1753377040202,-165.0,0.00034986,2]
[374612307,1753377040211,-150.0,0.00034986,2]
[374612309,1753377040222,-204.4,0.00034986,2]
[374612311,1753377040231,-459.31,0.00034986,2]
[374612313,1753377040241,-589.31,0.00034986,2]
[374612314,1753377040252,-150.0,0.00034986,2]
[374612317,1753377040273,-165.0,0.00034986,2]
[374612319,1753377040283,-150.0,0.00034986,2]
[374612321,1753377040293,-150.0,0.00034986,2]
[374612323,1753377040303,-150.0,0.00034986,2]
[374612325,1753377040312,-164.04,0.00034986,2]
[374612327,1753377040323,-459.31,0.00034986,2]
[374612328,1753377040333,-913.6271989,0.00035,2]
[374612331,1753377040347,-500.0,0.00035031,30]
[374612333,1753377040356,-1404.0,0.00035057,2]
[374612335,1753377040366,-462.7845839,0.00035057,2]
[374612337,1753377040376,-168.0,0.00035178,2]
[374612339,1753377040386,-1041.0,0.000352,7]
[374612341,1753377040396,-168.0,0.00035237,2]
[374612343,1753377040405,-150.0,0.0003526,2]
[374612345,1753377040415,-150.0,0.0003526,2]
[374612347,1753377040425,-168.0,0.00035296,2]
[374612349,1753377040435,-500.0,0.00035305,30]
[374612351,1753377040444,-168.0,0.0003532,2]
[374612353,1753377040454,-173.09693394,0.000354,2]
[374612355,1753377040464,-1404.0,0.00035407,2]
[374612357,1753377040474,-173.09693389,0.00035416,2]
[374612358,1753377040483,-173.09693389,0.00035432,2]
[374612360,1753377040493,-173.09693389,0.00035448,2]
[374612363,1753377040503,-2837.45892876,0.0003545,2]
[374612365,1753377040512,-173.09693389,0.00035464,2]
[374612367,1753377040521,-173.09693389,0.0003548,2]
[374612369,1753377040531,-173.09693389,0.00035496,2]
[374612371,1753377040541,-1000.0,0.000355,22]
[374612373,1753377040551,-1000.0,0.000355,15]
[374612375,1753377040560,-1417.0,0.000355,15]
[374612377,1753377040571,-1000.0,0.000355,15]
[374612379,1753377040580,-1000.0,0.000355,15]
[374612381,1753377040590,-200.0,0.00035508,10]
[374612383,1753377040600,-173.09693389,0.00035512,2]
[374612385,1753377040609,-150.0,0.00035525,2]
[374612387,1753377040619,-173.09693389,0.00035528,2]
[374612389,1753377040628,-150.0,0.0003553,2]
[374612391,1753377040637,-173.09693389,0.00035544,2]
[374612393,1753377040647,-150.0,0.0003555,2]
[374612395,1753377040656,-150.0,0.00035552,2]
[374612397,1753377040666,-150.0,0.00035554,2]
[374612399,1753377040676,-150.0,0.00035556,2]
[374612401,1753377040686,-173.09693389,0.00035561,2]
[374612403,1753377040696,-150.0,0.00035562,2]
[374612405,1753377040706,-150.0,0.00035572,2]
[374612407,1753377040715,-150.0,0.00035574,2]
[374612409,1753377040725,-173.09693389,0.00035577,2]
[374612411,1753377040736,-500.0,0.00035579,30]
[374612413,1753377040746,-150.0,0.00035579,2]
[374612415,1753377040755,-150.0,0.00035579,2]
[374612417,1753377040765,-173.09693389,0.00035593,2]
[374612419,1753377040775,-150.0,0.00035594,2]
[374612421,1753377040784,-151.0,0.00035598,7]
[374612423,1753377040794,-151.0,0.00035598,7]
[374612425,1753377040804,-1140.126857,0.00035598,7]
[374612427,1753377040814,-352.86,0.000356,7]
[374612429,1753377040824,-23956.33449258,0.000356,9]
[374612431,1753377040833,-153.0,0.00035602,5]
[374612433,1753377040843,-150.0,0.00035602,2]
[374612435,1753377040853,-164.0,0.00035607,2]
[374612437,1753377040863,-150.0,0.00035608,2]
[374612439,1753377040873,-173.09693389,0.00035609,2]
[374612441,1753377040883,-152.668576,0.00035612,7]
[374612443,1753377040893,-150.0,0.00035614,2]
[374612445,1753377040903,-150.0,0.00035615,2]
[374612447,1753377040912,-500.0,0.00035616,20]
[374612449,1753377040922,-301.46423935,0.00035616,20]
[374612451,1753377040931,-150.0,0.00035617,2]
[374612453,1753377040941,-150.0,0.00035617,2]
[374612455,1753377040950,-150.0,0.00035617,2]
[374612458,1753377040960,-150.0,0.00035617,2]
[374612459,1753377040969,-150.0,0.00035617,2]
[374612462,1753377040979,-150.0,0.00035617,2]
[374612464,1753377040988,-203.42178281,0.00035617,2]
[374612466,1753377040998,-150.0,0.00035617,2]
[374612468,1753377041008,-150.0,0.00035617,2]
[374612470,1753377041020,-150.0,0.00035617,2]
[374612471,1753377041029,-150.0,0.00035617,2]
[374612474,1753377041039,-171.28468867,0.00035617,2]
[374612475,1753377041049,-500.0,0.00035617,2]
[374612477,1753377041059,-150.0,0.00035617,2]
[374612480,1753377041069,-150.0,0.00035617,2]
[374612481,1753377041078,-150.0,0.00035617,2]
[374612483,1753377041088,-150.0,0.00035617,2]
[374612486,1753377041099,-150.0,0.00035617,2]
[374612488,1753377041108,-500.0,0.00035617,2]
[374612489,1753377041118,-150.0,0.00035617,2]
[374612491,1753377041130,-500.0,0.00035617,2]
[374612493,1753377041140,-150.0,0.00035617,2]
[374612495,1753377041150,-150.0,0.00035617,2]
[374612497,1753377041160,-500.0,0.00035617,2]
[374612499,1753377041170,-150.0,0.00035617,2]
[374612501,1753377041179,-500.0,0.00035617,2]
[374612503,1753377041189,-150.0,0.00035617,2]
[374612506,1753377041199,-150.0,0.00035617,2]
[374612507,1753377041209,-150.0,0.00035617,2]
[374612510,1753377041218,-201.83705436,0.00035617,2]
[374612511,1753377041228,-500.0,0.00035617,2]
[374612514,1753377041237,-150.0,0.00035617,2]
[374612516,1753377041247,-150.0,0.00035617,2]
[374612517,1753377041255,-150.0,0.00035617,2]
[374612520,1753377041266,-150.0,0.00035617,2]
[374612522,1753377041275,-150.0,0.00035617,2]
[374612524,1753377041285,-150.0,0.00035617,2]
[374612526,1753377041295,-150.0,0.0003562,2]
[374612528,1753377041304,-173.09693389,0.00035625,2]
[374612530,1753377041314,-150.0,0.00035632,2]
[374612532,1753377041325,-150.0,0.00035632,2]
[374612534,1753377041336,-173.09693389,0.00035641,2]
[374612536,1753377041348,-150.0,0.00035652,2]
[374612538,1753377041359,-173.09693389,0.00035657,2]
[374612540,1753377041368,-150.0,0.0003566,2]
[374612542,1753377041378,-150.0,0.00035663,2]
[374612544,1753377041388,-150.0,0.00035671,2]
[374612546,1753377041398,-173.09693389,0.00035673,2]
[374612548,1753377041407,-167.42,0.00035673,2]
[374612550,1753377041417,-236.73220501,0.00035679,2]
[374612552,1753377041427,-168.0,0.00035682,7]
[374612554,1753377041436,-236.73220494,0.00035683,2]
[374612556,1753377041446,-4495.41449007,0.00035686,2]
[374612558,1753377041455,-236.73220494,0.00035686,2]
[374612560,1753377041465,-4495.41449005,0.00035689,2]
[374612562,1753377041474,-173.09693389,0.00035689,2]
[374612564,1753377041483,-150.0,0.0003569,2]
[374612566,1753377041493,-236.73220494,0.0003569,2]
[374612568,1753377041502,-4495.41449005,0.00035692,2]
[374612570,1753377041511,-150.0,0.00035692,2]
[374612572,1753377041521,-236.73220494,0.00035694,2]
[374612574,1753377041530,-4495.41449005,0.00035694,2]
[374612576,1753377041540,-4495.41449005,0.00035697,2]
[374612578,1753377041550,-236.73220494,0.00035698,2]
[374612580,1753377041559,-356.64069783,0.00035698,2]
[374612582,1753377041569,-438.0,0.00035698,120]
[374612584,1753377041579,-150.0,0.00035698,2]
[374612586,1753377041588,-5000.0,0.00035698,2]
[374612588,1753377041597,-716.0195,0.00035699,3]
[374612590,1753377041607,-4495.41449005,0.000357,2]
[374612592,1753377041616,-151.0,0.000357,7]
[374612594,1753377041626,-151.0,0.000357,7]
[374612596,1753377041636,-151.0,0.000357,7]
[374612598,1753377041654,-1140.126857,0.000357,7]
[374612600,1753377041663,-165.7,0.000357,33]
[374612602,1753377041673,-300.0,0.000357,12]
[374612604,1753377041682,-200.0,0.000357,12]
[374612606,1753377041692,-236.73220494,0.00035701,2]
[374612608,1753377041702,-4495.41449005,0.00035703,2]
[374612610,1753377041712,-150.0,0.00035705,2]
[374612612,1753377041721,-173.09693389,0.00035705,2]
[374612614,1753377041731,-236.73220494,0.00035705,2]
[374612616,1753377041740,-168.0,0.00035705,7]
[374612618,1753377041750,-4495.41449005,0.00035705,2]
[374612620,1753377041760,-4495.41449005,0.00035708,2]
[374612622,1753377041770,-4495.41449005,0.00035711,2]
[374612624,1753377041780,-150.0,0.00035713,2]
[374612626,1753377041789,-150.0,0.00035723,2]
[374612627,1753377041798,-150.0,0.00035732,2]
[374612629,1753377041808,-150.0,0.00035734,2]
[374612631,1753377041819,-150.0,0.0003574,2]
[374612634,1753377041829,-500.0,0.00035747,7]
[374612636,1753377041839,-801.72608147,0.00035747,7]
[374612637,1753377041849,-150.0,0.00035752,2]
[374612639,1753377041858,-1404.0,0.00035758,2]
[374612641,1753377041868,-7000.0,0.0003576,2]
[374612643,1753377041877,-150.0,0.00035762,2]
[374612645,1753377041888,-150.0,0.00035766,2]
[374612647,1753377041898,-150.0,0.00035767,2]
[374612649,1753377041908,-150.0,0.00035768,2]
[374612652,1753377041917,-150.0,0.00035773,2]
[374612654,1753377041927,-334.84,0.00035773,2]
[374612656,1753377041936,-400.0,0.00035778,2]
[374612658,1753377041946,-400.0,0.00035778,2]
[374612660,1753377041956,-400.0,0.00035778,2]
[374612662,1753377041967,-98104.0104721,0.00035778,3]
[374612664,1753377041977,-23154.1514511,0.00035778,3]
[374612666,1753377041987,-7718.0504837,0.00035779,3]
[374612668,1753377041997,-158.70872434,0.0003578,30]
[374612670,1753377042006,-892.0,0.00035781,120]
[374612672,1753377042016,-150.0,0.00035781,2]
[374612674,1753377042025,-178.45,0.00035784,2]
[374612676,1753377042037,-108052.706772,0.00035785,3]
[374612678,1753377042047,-16350.668412,0.00035786,3]
[374612680,1753377042056,-150.0,0.00035786,2]
[374612682,1753377042066,-7718.0504837,0.00035787,3]
[374612684,1753377042076,-161.38,0.00035787,2]
[374612686,1753377042087,-500.0,0.00035787,120]
[374612688,1753377042096,-480.0,0.00035787,120]
[374612695,1753377042484,-622.92,0.00035787,120]
[374612696,1753377042494,-480.0,0.00035787,120]
[374612697,1753377042504,-16350.668412,0.00035788,3]
[374612698,1753377042514,-23154.1514511,0.00035788,3]
[374612699,1753377042526,-16350.668412,0.00035789,3]
[374612700,1753377042536,-7718.0504837,0.00035789,3]
[374612701,1753377042545,-150.0,0.00035789,2]
[374612702,1753377042555,-150.0,0.00035789,2]
[374612703,1753377042565,-500.0,0.00035794,120]
[374612704,1753377042577,-460.0,0.00035794,120]
[374612705,1753377042587,-500.0,0.00035794,120]
[374612707,1753377042596,-460.0,0.00035794,120]
[374612709,1753377042606,-152.71,0.00035794,2]
[374612711,1753377042615,-39488.7409904,0.00035795,3]
[374612712,1753377042631,-189420.6167776,0.00035795,3]
[374612713,1753377042641,-43373.43676493,0.00035795,3]
[374612716,1753377042696,-1865.9393606,0.00035795,3]
[374612717,1753377042708,-573.69492,0.00035795,3]
[374612718,1753377042720,-36253.00983827,0.00035795,3]
[374612719,1753377042732,-10550.5249206,0.00035795,3]
[374612720,1753377042742,-150.5,0.00035795,120]
[374612721,1753377042752,-500.0,0.00035796,120]
[374612723,1753377042762,-480.0,0.00035796,120]
[374612725,1753377042772,-151.0,0.00035797,7]
[374612727,1753377042782,-151.0,0.00035797,7]
[374612728,1753377042792,-500.0,0.00035797,120]
[374612729,1753377042802,-1140.126857,0.00035797,7]
[374612730,1753377042812,-500.0,0.00035797,120]
[374612731,1753377042825,-500.0,0.00035797,120]
[374612732,1753377042834,-500.0,0.00035797,30]
[374612733,1753377042844,-500.0,0.00035797,120]
[374612734,1753377042854,-500.0,0.00035797,120]
[374612735,1753377042864,-150.0,0.00035797,2]
[374612736,1753377042873,-666.0,0.00035797,10]
[374612737,1753377042883,-666.0,0.00035798,10]
[374612738,1753377042893,-151.0,0.00035798,2]
[374612739,1753377042903,-156.21245783,0.00035798,2]
[374612740,1753377042913,-151.0,0.00035798,7]
[374612741,1753377042923,-151.0,0.00035798,7]
[374612742,1753377042933,-151.0,0.00035798,7]
[374612743,1753377042943,-186.176792,0.00035798,7]
[374612744,1753377042953,-480.0,0.00035798,30]
[374612745,1753377042962,-151.0,0.00035798,7]
[374612746,1753377042972,-151.0,0.00035798,7]
[374612747,1753377042982,-151.0,0.00035798,7]
[374612748,1753377042991,-151.0,0.00035798,7]
[374612749,1753377043001,-151.0,0.00035798,7]
[374612750,1753377043010,-151.0,0.00035798,7]
[374612751,1753377043020,-151.0,0.00035798,7]
[374612752,1753377043030,-151.0,0.00035798,7]
[374612753,1753377043040,-151.0,0.00035798,7]
[374612754,1753377043050,-151.0,0.00035798,7]
[374612755,1753377043059,-151.0,0.00035798,7]
[374612756,1753377043069,-151.0,0.00035798,7]
[374612757,1753377043078,-151.0,0.00035798,7]
[374612758,1753377043088,-151.0,0.00035798,7]
[374612759,1753377043098,-151.0,0.00035798,7]
[374612761,1753377043107,-151.0,0.00035798,7]
[374612763,1753377043117,-277.114661,0.00035798,7]
[374612764,1753377043126,-200.0,0.00035798,2]
[374612765,1753377043135,-500.0,0.00035798,120]
[374612766,1753377043144,-232.41,0.00035798,120]
[374612768,1753377043154,-1140.126857,0.00035798,7]
[374612770,1753377043163,-1140.126857,0.00035798,7]
[374612772,1753377043173,-1140.126857,0.00035798,7]
[374612774,1753377043183,-1140.126857,0.00035798,7]
[374612776,1753377043192,-1140.126857,0.00035798,7]
[374612778,1753377043202,-1140.126857,0.00035798,7]
[374612780,1753377043212,-1140.126857,0.00035798,7]
[374612782,1753377043223,-1140.126857,0.00035798,7]
[374612784,1753377043233,-1140.126857,0.00035798,7]
[374612786,1753377043242,-1140.126857,0.00035798,7]
[374612789,1753377043252,-1140.126857,0.00035798,7]
[374612791,1753377043263,-1140.126856,0.00035798,7]
[374612792,1753377043273,-151.0,0.00035798,7]
[374612794,1753377043283,-274.97889,0.00035798,7]
[374612795,1753377043293,-151.0,0.00035798,7]
[374612796,1753377043306,-19.37175117,0.00035798,7]